Cogmind - Beta 13 @@@ ROGUE MODE // 2024.05.06 @ 01:23:59 Player: Compound1080 Result: Destroyed by D-53 Grenadier with Mini Grenade Launcher Performance ------------- Evolutions (0) 0 Regions Visited (4) 800 Robots Destroyed (21) 105 Value Destroyed (492) 492 Prototype IDs (0) 0 Alien Tech Used (0) 0 Bonus (0) 0 TOTAL SCORE: 1397 Bonus ------- None Cogmind --------- Core Integrity 0/250 Matter 300/300 Energy 250/250 System Corruption 0% Temperature Cool (0) Movement Core (550) Ox10 Location -9/Mines Parts ------- > --- POWER (1) -------- Ion Engine > --- PROPULSION (2) --- (None) > --- UTILITY (2) ------ Large Storage Unit Structural Scanner > --- WEAPON (2) ------- Light Assault Rifle Gauss Rifle > --- INVENTORY (15) --- Light Nuclear Core Micro Nuclear Core Aluminum Leg Flight Unit Flight Unit Flight Unit Medium Storage Unit Weight Redist. System Makeshift Sensor Array Signal Interpreter Hardened Light Armor Plating Particle Cannon Makeshift Hammer Makeshift Spear Peak State ------------ > --- POWER ------------ Ion Engine > --- PROPULSION ------- Aluminum Leg Aluminum Leg > --- UTILITY ---------- Large Storage Unit Structural Scanner > --- WEAPON ----------- Light Assault Rifle Gauss Rifle > --- INVENTORY -------- Light Nuclear Core Micro Nuclear Core Aluminum Leg Flight Unit Flight Unit Flight Unit Medium Storage Unit Weight Redist. System Makeshift Sensor Array Signal Interpreter Hardened Light Armor Plating Particle Cannon Makeshift Hammer Makeshift Spear [Rating: 13] Favorites ----------- Power Ion Engine Engine Ion Engine Propulsion Aluminum Leg Treads Light Treads Leg Aluminum Leg Utility Large Storage Unit Device Structural Scanner Storage Large Storage Unit Weapon Assault Rifle Energy Cannon Particle Cannon Ballistic Gun Assault Rifle Build | -11 -10 -10 -10 -9 ------- Run | Yrd Mat Min Exi Min Slots Evolved . | . . . . . Power . | . . . . . Propulsion . | . . . . . Utility . | . . . . . Weapon . | . . . . . Parts Attached 19 | 6 5 6 . 2 Power 3 | 1 . 1 . 1 Engine 3 | 1 . 1 . 1 Core . | . . . . . Reactor . | . . . . . Propulsion 4 | 2 . 2 . . Treads 2 | 2 . . . . Leg 2 | . . 2 . . Wheel . | . . . . . Hover . | . . . . . Flight . | . . . . . Utility 7 | 1 5 1 . . Device 2 | . 1 1 . . Storage 5 | 1 4 . . . Processor . | . . . . . Hackware . | . . . . . Protection . | . . . . . Artifact . | . . . . . Weapon 5 | 2 . 2 . 1 Energy Gun . | . . . . . Energy Cannon 1 | . . 1 . . Ballistic Gun 4 | 2 . 1 . 1 Ballistic Cannon . | . . . . . Launcher . | . . . . . Special Weapon . | . . . . . Impact Weapon . | . . . . . Slashing Weapon . | . . . . . Piercing Weapon . | . . . . . Special Melee Weapon . | . . . . . Unidentified Prototypes . | . . . . . Parts Lost 7 | . . 5 . 2 Power . | . . . . . Propulsion 4 | . . 2 . 2 Utility 1 | . . 1 . . Weapon 2 | . . 2 . . Highest Loss Streak 3 | . . 3 . 2 To Critical Strikes . | . . . . . Average Slot Usage (%) 88 | . 93 87 85 97 Engine 14 | . 14 14 14 14 Treads 9 | . 28 8 . . Leg 18 | . . 19 28 28 Device 11 | . 8 12 14 14 Storage 14 | . 14 14 14 14 Ballistic Gun 19 | . 28 18 14 26 Naked Turns . | . . . . . Heaviest Build 31 | 12 28 30 27 31 Greatest Support 40 | 40 40 40 20 20 Greatest Overweight (x) 10 | . . 1 1 10 Average Overweight (x) . | . . . 1 1 Largest Inventory Capacity 25 | 8 25 15 15 15 Average Capacity 14 | 7 13 15 15 15 Most Carried 15 | 3 13 15 15 15 Average Carried 11 | 1 8 12 14 14 Final Capacity 15 | 8 15 15 15 15 Final Carried 15 | 2 13 11 15 14 Class Distribution -------------------- 100% | Mutant Dominant Class ---------------- Mutant | -10/Materials Mutant | -10/Mines Mutant | -10/Exiles Mutant | -9/Mines Resources | -11 -10 -10 -10 -9 ----------- Run | Yrd Mat Min Exi Min Matter Collected 769 | 243 225 238 43 20 Remotely . | . . . . . Salvage Created 790 | 25 259 384 122 . Parts 51 | 1 24 24 2 . Haulers Intercepted 1 | . 1 . . . Recyclers Shooed . | . . . . . Parts Field Recycled . | . . . . . Retrieved Matter . | . . . . . Parts Self-Destructed . | . . . . . Prevented . | . . . . . Kills | -11 -10 -10 -10 -9 ------- Run | Yrd Mat Min Exi Min Combat Hostiles Destroyed 17 | . 7 10 . . Guns 16 | . 7 9 . . Cannons 1 | . . 1 . . Classes Destroyed 5 | 1 4 . . . Tunneler 1 | 1 . . . . Hauler 1 | . 1 . . . Watcher 2 | . 2 . . . Swarmer 8 | . 5 3 . . Grunt 9 | . 2 7 . . Best Kill Streak 3 | 1 3 3 . . Combat Bots Only 3 | . 3 3 . . Max Kills in Single Turn 1 | 1 1 1 . . Gunslinging . | . . . . . Exploded . | . . . . . Melee . | . . . . . Uniques/NPCs Destroyed . | . . . . . Combat | -11 -10 -10 -10 -9 -------- Run | Yrd Mat Min Exi Min Hostile Shots Fired 118 | . 49 63 . 6 Missed 29 | . 17 11 . 1 Damage Taken 1179 | . 302 691 . 186 Core 300 | . 35 157 . 108 Absorbed by Shields . | . . . . . Core Remaining (%) 100 | 100 . . . . Volleys Fired 125 | 3 34 43 43 2 Largest 2 | 2 2 2 1 2 Hottest 88 | 40 40 88 20 48 Shots Fired 186 | 6 68 65 43 4 Gun 182 | 6 68 61 43 4 Cannon 4 | . . 4 . . Launcher . | . . . . . Special . | . . . . . Kinetic 182 | 6 68 61 43 4 Thermal 4 | . . 4 . . Explosive . | . . . . . Electromagnetic . | . . . . . Robot Hit Streak 33 | 2 5 16 33 1 Robot Miss Streak 5 | 3 5 2 2 2 Penetration Max . | . . . . . Secondary Targets 3 | . 1 2 . . Max Gunslinging Chain 1 | . 1 1 . . Shots Hit Robots 118 | 2 30 46 39 1 Core Hits 46 | 1 13 22 10 . Critical Kills . | . . . . . Critical Parts Destroyed . | . . . . . Critical Strikes . | . . . . . Melee Attacks . | . . . . . Impact . | . . . . . Slashing . | . . . . . Piercing . | . . . . . Sneak Attacks . | . . . . . Combat Hostiles . | . . . . . Follow-up Attacks . | . . . . . Damage Inflicted 1252 | 24 395 579 238 16 Guns 1165 | 24 395 492 238 16 Cannons 61 | . . 61 . . Explosions . | . . . . . Melee . | . . . . . Ramming 26 | . . 26 . . Kinetic 1165 | 24 395 492 238 16 Thermal 61 | . . 61 . . Explosive . | . . . . . Electromagnetic . | . . . . . Impact . | . . . . . Slashing . | . . . . . Piercing . | . . . . . Highest Corruption . | . . . . . Average Corruption . | . . . . . Corruption Purged . | . . . . . Corruption Blocked . | . . . . . Overload Shots . | . . . . . Overflow Damage . | . . . . . Projectiles . | . . . . . Explosions . | . . . . . Melee . | . . . . . Knockbacks . | . . . . . Impact . | . . . . . Kinetic . | . . . . . Secondary . | . . . . . Self-Inflicted Damage . | . . . . . Shots . | . . . . . Rammed . | . . . . . Targets Rammed 6 | . . 6 . . Kicked 6 | . . 6 . . Crushed . | . . . . . Highest Temperature 209 | . 2 209 . 8 Average Temperature 63 | . 2 71 . 6 Received Heat Transfer 468 | . 48 420 . . Effects 1 | . . 1 . . Interference 1 | . . 1 . . Siege Activations . | . . . . . Robots Corrupted . | . . . . . Combat Hostiles . | . . . . . Parts Fried . | . . . . . Impact Corruptions . | . . . . . Robots Melted . | . . . . . Combat Hostiles . | . . . . . Parts Melted . | . . . . . Heat Transferred 111 | . . 111 . . Parts Sabotaged . | . . . . . Parts Stolen . | . . . . . Parts Stripped . | . . . . . Power Chain Reactions . | . . . . . Alert | -11 -10 -10 -10 -9 ------- Run | Yrd Mat Min Exi Min Peak Influence 171 | 5 171 152 . . Initial 27 | . 3 27 . . Average 43 | . 54 45 . . Maximum Alert Level . | . . . . . Low Security (%) 100 | 100 100 100 . 100 Level 1 . | . . . . . Level 2 . | . . . . . Level 3 . | . . . . . Level 4 . | . . . . . Level 5 . | . . . . . High Security . | . . . . . Max Security . | . . . . . Squads Dispatched 1 | . . . . 1 Investigation 1 | . . . . 1 Extermination . | . . . . . Reinforcement . | . . . . . Assault . | . . . . . Garrison . | . . . . . Intercept . | . . . . . Searches Triggered . | . . . . . Construction Impeded . | . . . . . Haulers Reinforced . | . . . . . Active Scanning Responses . | . . . . . Cargo Convoy Interrupts . | . . . . . Stealth | -11 -10 -10 -10 -9 --------- Run | Yrd Mat Min Exi Min Distress Signals 2 | . 1 1 . . Communications Jammed . | . . . . . Distress Signals . | . . . . . Times Spotted 34 | . 15 11 . 8 Peak Tracking Total 20 | . 3 4 . 20 Tactical Retreats 1 | . . . . 1 Traps | -11 -10 -10 -10 -9 ------- Run | Yrd Mat Min Exi Min Traps Triggered 1 | . 1 . . . Indirectly . | . . . . . Trap Hack Attempts . | . . . . . Triggered . | . . . . . Disarmed . | . . . . . Reprogrammed . | . . . . . Reused . | . . . . . Traps Extracted . | . . . . . Installed . | . . . . . Triggered . | . . . . . Machines | -11 -10 -10 -10 -9 ---------- Run | Yrd Mat Min Exi Min Machines Disabled . | . . . . . Max in Single Turn . | . . . . . Machines Repaired . | . . . . . Machines Dismantled . | . . . . . Machines Sabotaged . | . . . . . Overloaded Fab Kills . | . . . . . Hacking | -11 -10 -10 -10 -9 --------- Run | Yrd Mat Min Exi Min Machines Accessed 11 | . 5 1 4 1 Terminals 6 | . 5 1 . . Fabricators . | . . . . . Repair Stations . | . . . . . Recycling Units . | . . . . . Scanalyzers . | . . . . . Garrison Access . | . . . . . Total Hacks 61 | . 9 2 49 1 Successful 56 | . 5 1 49 1 Failed 5 | . 4 1 . . Catastrophic . | . . . . . Database Lockouts . | . . . . . Manual 3 | . . . 3 . Terminals 11 | . 9 2 . . Fabricators . | . . . . . Repair Stations . | . . . . . Recycling Units . | . . . . . Scanalyzers . | . . . . . Garrison Access . | . . . . . Terminal Hacks 56 | . 5 1 49 1 Record 49 | . . . 49 . Open Door 1 | . . . . 1 Locate Traps 2 | . 2 . . . Transport Status 1 | . 1 . . . Zone Layout 3 | . 2 1 . . Fabricator Hacks . | . . . . . Repair Station Hacks . | . . . . . Recycling Unit Hacks . | . . . . . Scanalyzer . | . . . . . Garrison Access Hacks . | . . . . . Unauthorized Hacks . | . . . . . Terminals . | . . . . . Fabricators . | . . . . . Repair Stations . | . . . . . Recycling Units . | . . . . . Scanalyzers . | . . . . . Garrison Access . | . . . . . Data Cores Recovered . | . . . . . Used . | . . . . . Hacking Detections 3 | . 2 1 . . Full Trace Events . | . . . . . Feedback Events . | . . . . . Feedback Blocked . | . . . . . Robot Schematics Acquired . | . . . . . Robots Built . | . . . . . Authchips . | . . . . . Time . | . . . . . Total Robot Build Rating . | . . . . . Part Schematics Acquired . | . . . . . Parts Built . | . . . . . Authchips . | . . . . . Time . | . . . . . Total Part Build Rating . | . . . . . Parts Repaired . | . . . . . Time . | . . . . . Parts Recycled . | . . . . . Recycled Matter . | . . . . . Retrieved Matter . | . . . . . Retrieved Components . | . . . . . Parts Scanalyzed . | . . . . . Part Schematics Acquired . | . . . . . Parts Damaged . | . . . . . Bothacking | -11 -10 -10 -10 -9 ------------ Run | Yrd Mat Min Exi Min Used RIF Installer . | . . . . . Robots Hacked . | . . . . . Non-combat . | . . . . . Combat . | . . . . . Robot Hacks Applied . | . . . . . Relay Couplers Released . | . . . . . Fabnet Peak Effective % . | . . . . . Robots Rewired . | . . . . . Allies Hacked . | . . . . . Hacks Repelled . | . . . . . Allies | -11 -10 -10 -10 -9 -------- Run | Yrd Mat Min Exi Min Total Allies . | . . . . . Largest Group . | . . . . . Highest-Rated Group . | . . . . . Highest-Rated Ally . | . . . . . Total Orders . | . . . . . Ally Attacks . | . . . . . Total Damage . | . . . . . Kills . | . . . . . Allies Corrupted . | . . . . . Allies Melted . | . . . . . Intel | -11 -10 -10 -10 -9 ------- Run | Yrd Mat Min Exi Min Robot Analysis Total . | . . . . . Derelict Logs Recovered 1 | . . 1 . . Drone Launches . | . . . . . Drone Recoveries . | . . . . . Exploration | -11 -10 -10 -10 -9 ------------- Run | Yrd Mat Min Exi Min Turns Passed 4144 | 95 970 1479 1391 209 Spaces Moved 2096 | 51 526 733 689 97 Core 9 | 8 . . . 1 Treads 796 | 43 526 227 . . Legs 1291 | . . 506 689 96 Wheels . | . . . . . Hover . | . . . . . Flight . | . . . . . Fastest Speed 50 | 50 160 160 190 190 Average Speed 178 | 142 160 180 190 193 Slowest Speed 550 | 160 160 190 190 550 Overloaded Moves . | . . . . . Propulsion Burnouts . | . . . . . Robots Hopped . | . . . . . Cave-ins Triggered . | . . . . . Exploration Rate (%) 60 | 4 87 97 93 23 Regions Visited 4 Branch Regions 3 Pre-discovered Areas 2 | . . 1 1 . Known Exits Taken . | . . . . . Unknown Exits Taken 4 | 1 1 1 1 . Scrap Searched 1 | . . 1 . . Spaces Dug . | . . . . . Terrain Destroyed 1 | . . . . 1 Melee . | . . . . . Projectile 1 | . . . . 1 AOE . | . . . . . Terrain Rammed . | . . . . . Walls Destroyed . | . . . . . Machines Disabled . | . . . . . Actions | -11 -10 -10 -10 -9 --------- Run | Yrd Mat Min Exi Min Total 2328 | 67 586 822 737 116 Wait 49 | . 6 30 . 13 Move 2092 | 50 525 732 688 97 Hop . | . . . . . Pick Up 30 | 8 14 3 4 1 Fast Attach . | . . . . . Attach 13 | 6 1 5 . 1 Detach 1 | . . 1 . . Swap 6 | . 4 1 . 1 Drop 4 | . 2 1 . 1 Fire 125 | 3 34 43 43 2 Melee . | . . . . . Ram . | . . . . . Kick 6 | . . 6 . . Crush . | . . . . . Escape Stasis . | . . . . . Rewire 2 | . . . 2 . Trap . | . . . . . Miscellaneous . | . . . . . Route ------- -11/Scrapyard -10/Materials (discovered 4 exits: [*Mat x3] / *Min) -10/Mines (discovered 3 exits: [*Mat x2] / *Exi) -10/Exiles (discovered 2 exits: *Min x2) -9/Mines (discovered 1 exit: [*Mat]) History --------- Turn | Location | Event 4 | -11/Scrapyard | Discovered new exit (range 15) 96 | -11/Scrapyard | Entered Materials 304 | -10/Materials | Discovered new exit (range 14) 314 | -10/Materials | Discovered new exit (range 13) 319 | -10/Materials | Build established: Mutant 401 | -10/Materials | Discovered new exit (range 15) 798 | -10/Materials | Discovered new exit (range 16) 1066 | -10/Materials | Entered Mines 1159 | -10/Mines | A weapon hastily lodged in a ceiling crevice suddenly fell to the ground 1252 | -10/Mines | Discovered new exit (range 8) 1258 | -10/Mines | Learned location of Storage (-8) 1389 | -10/Mines | Learned 2 Materials zone layouts 1413 | -10/Mines | Found a hidden stash of uninstalled traps 1514 | -10/Mines | Core integrity fell below 50% 1546 | -10/Mines | Lost 3 parts (2n1w) 1854 | -10/Mines | Discovered new exit (range 7) 2047 | -10/Mines | Discovered new exit (range 5) 2115 | -10/Mines | Deemed a non-threat by the Exiles lab entrance 2545 | -10/Mines | Entered Exiles 2545 | -10/Exiles | Found Exiles lab destroyed 2574 | -10/Exiles | Discovered new exit (range 14) 3313 | -10/Exiles | Discovered new exit (range 10) 3860 | -10/Exiles | Learned location of Zion (-7) 3936 | -10/Exiles | Entered Mines 3941 | -9/Mines | Met a Derelict shopkeep closing up shop 4008 | -9/Mines | Discovered new exit (range 14) 4116 | -9/Mines | Assembled infested the area 4121 | -9/Mines | Assisted by a Guerilla fighting off Assembled 4141 | -9/Mines | Core integrity fell below 20% 4145 | -9/Mines | Destroyed by D-53 Grenadier with Mini Grenade Launcher Last Messages --------------- coming from, and they're closing on this area, come on!" 04121_ K-01 Serf collects debris. 04124_ HJ-0V5(h): "I'll hold them off! Go on ahead or try to find another way!" 04127_ K-01 Serf destroyed. 04133_ HJ-0V5(h) destroyed. 04134_ C-30 ARC bursts open, deploying its payload. 04137_ K-01 Serf system corrupted by crushing effect. [Achievement: Hunted] 04137_ K-01 Serf destroyed. 04139_ U-05 Engineer destroyed. 04140_ Aluminum Leg destroyed. 04141_ R-06 Scavenger destroyed. 04141_ Aluminum Leg destroyed. 04143_ U-05 Engineer lays Concrete. 04143_ U-05 Engineer destroyed. 04144_ R-06 Scavenger collects Terrain Scanner. Map ----- +----------------------------------------------------+ | ?????????????????? ????????????????????????????? | | ????????????????? ????????????????????????????? | | ????????????????? ??????????????????????????? | | ????????????????? ??????????????????????????? | | ?????????????????? ?????????????????????????? | | ?????????????????? ?????????????????????????? | | ??????????????????? ?????????????????????????? | | ??????????????????# *% ??????????????????????????? | | ??????????????????## ! #?????????????????????????? | | ??????????????????##=%###????????????????????????? | | ??????????????????## %######?????????????????????? | | ?????????????????### ######????????????????????? | | ????????????????#### ###???##########???????? | | ?????????????###### ##???##########???????? | | ????????????###### a ##???##""""""##???????? | | ???????????#### ###???##!!!|*!##???????? | | ???????????### a ###???###* ###???????? | | ??????????### ####??### !###???????? | | ?????????#### ###??#### ####???????? | | ?????????### = ##?### X ###??????? | | ?????????## =a! ####### ###??????? | | ?????????## ######### ##?###### | | ?????????### # d ### ##?###### | | ?????????#### ## # ### ##### ## | | ??????????########## #### ###### ## | | ???????????######### @ ##### ##### < ## | | ??????????????????### d ##### ##### ### | | ??????????????????## % #### ##### ##??? | | ??????????????????### % r ### ##### ###??? | | ??????????????????#### ### ### #### ####??? | | ???????????????????###### ### ###???? | | ????????????????????#### %%## ##????? | | ????????????????????### ##### ### ###????? | | ???????????????????### ###### ## ###????? | | ???????????????????## ###?## ## ###?????? | | ???????????????????## ###??## ###?????? | | ???????????????????### ######??###### ###??????? | | ???????????????????##########???###########??????? | | ????????????????????#####???????????######???????? | | ?????????????????????????????????????????????????? | | ?????????????????????????????????????????????????? | | | | | | | | | | | | | | | | | | | +----------------------------------------------------+ Best States ------------- Heat Dissipation 25 Energy Generation 10 Energy Capacity 250 Matter Stores 300 Matter Capacity 300 Sight Range 16 Terrain Scan Density 10 Evasion (%) 40 Recoil Reduction 2 Item Schematics ----------------- None Robot Schematics ------------------ None Fabricated ------------ Nothing Alien Tech Used ----------------- None Achievements -------------- Hunted Challenges ------------ None Game ------ Seed PlasmaPrecisionStorage Manual? 0 Play Time 00:25:14 Cumulative 10.9 hours Start 2024.05.06 @ 00:59:35 End 2024.05.06 @ 01:23:59 Sessions 1 Manual Loads 0 Difficulty Rogue Special Mode None Game No. 22 Rogue 22 Adventurer 0 Explorer 0 Win Type - Total 0 Types 0/0/0/0/0/0/0/0/0 Lore% 14 Gallery% 14 Achievement% 12 Wizard Run 0 Options --------- Layout 1 ASCII 0 Keyboard 0 Movement Mouse Keybinds 0 Fullscreen 2 Font 24/Smallcaps Map View 50x35 Zoom Use 0% Tactical HUD 1 Map Filters NONE Filters NONE Steam 1 RUN: 06f5c805-f59d-476a-a331-1c8995aa29b0